Cogmind - Beta 12 X1 @@@ ROGUE MODE // 2022.07.27 @ 19:11:38 Player: Exp. Geonium Core Result: Destroyed by B-99 Colossus with Multirail Performance ------------- Evolutions (9) 4500 Regions Visited (25) 5000 Robots Destroyed (78) 390 Value Destroyed (8028) 8028 Prototype IDs (39) 780 Alien Tech Used (0) 0 Bonus (12279) 12279 TOTAL SCORE: 30977 Bonus ------- High Alert Combat Kills 207 Follower Combat Kills 6151 Entered Garrisons 2000 Used RIF Installer 5500 Aligned with FarCom 300 Friendly Fire -1879 Cogmind --------- Core Integrity 0/1600 Matter 250/300 Energy 98/100 System Corruption 13% Temperature Cool (0) Movement Core (50) Location -1/Access Parts ------- > --- POWER (1) -------- (None) > --- PROPULSION (3) --- (None) > --- UTILITY (19) ----- Relay Coupler [Duelist] (34) Relay Coupler [Sentry] (25) Relay Coupler [Proto] (10) Relay Coupler [Proto] (10) > --- WEAPON (2) ------- (None) > --- INVENTORY (5) ---- Biometal Heavy Treads Cooled Impulse Thruster Enhanced Nova Cannon Peak State ------------ > --- POWER ------------ Light Quantum Reactor > --- PROPULSION ------- Centrium Heavy Treads Experimental Biometal Medium Treads > --- UTILITY ---------- Huge Storage Unit Experimental Shield Generator Improved Hacking Suite Relay Coupler [Swarmer] Relay Coupler [Swarmer] Relay Coupler [Grunt] Relay Coupler [Grunt] Relay Coupler [Brawler] Relay Coupler [Duelist] Relay Coupler [Sentry] Relay Coupler [Sentry] Relay Coupler [Demolisher] Relay Coupler [Hunter] Relay Coupler [Behemoth] Relay Coupler [Behemoth] Relay Coupler [Proto] Relay Coupler [Proto] > --- WEAPON ----------- Advanced Remote Datajack Power Sword > --- INVENTORY -------- Quantum Reactor Centrium Heavy Treads Relay Coupler [NC] Relay Coupler [NC] Relay Coupler [NC] Relay Coupler [Grunt] Relay Coupler [Duelist] Relay Coupler [Duelist] Relay Coupler [Sentry] Relay Coupler [Sentry] Relay Coupler [Sentry] Relay Coupler [Specialist] Relay Coupler [Heavy] Relay Coupler [Heavy] Relay Coupler [Proto] Relay Coupler [Proto] Relay Coupler [Proto] Relay Coupler [Proto] Relay Coupler [Proto] Advanced Datajack [Rating: 143] Favorites ----------- Power Particle Reactor Engine Ion Engine Power Core Nuclear Core Reactor Particle Reactor Propulsion Armored Wheel Treads Armored Heavy Treads Leg Biometal Leg Wheel Armored Wheel Flight Unit Improved Diametric Drive Utility Hacking Suite Device Experimental Shield Generator Storage Huge Storage Unit Processor Modified TNC Hackware Hacking Suite Protection Light Armor Plating Weapon Remote Datajack Energy Gun Heavy Laser Energy Cannon Guided Plasma Cannon Ballistic Gun KE Penetrator Launcher Mini Grenade Launcher Special Weapon Remote Datajack Slashing Weapon Power Sword Special Melee Weapon Improved Datajack Build | -11 -10 -10 -10 -9 -8 -8 -8 -8 -7 -7 -7 -7 -6 -6 -5 -5 -4 -4 -3 -3 -2 -2 -1 -1 -1 ------- Run | Scr Mat Min Exi Min Mat Gar Mat Gar Fac Gar Fac Gar Fac Gar Fac Gar Fac Gar Res Gar Res Gar Acc Gar Acc Slots Evolved 18 | . . . . . 4 . . . 2 . . . 2 . 2 . 2 . 2 . 2 . 2 . . Power . | . . . . . . . . . . . . . . . . . . . . . . . . . . Propulsion 1 | . . . . . 1 . . . . . . . . . . . . . . . . . . . . Utility 17 | . . . . . 3 . . . 2 . . . 2 . 2 . 2 . 2 . 2 . 2 . . Weapon . | . . . . . . . . . . . . . . . . . . . . . . . . . . Parts Attached 229 | . 5 . . 2 5 22 2 23 6 24 3 17 2 28 8 12 1 2 6 11 9 22 12 1 6 Power 16 | . . . . . . 1 . 3 . 1 1 1 . 2 . . 1 . . 2 . 2 1 . 1 Engine 1 | . . . . . . . . . . 1 . . . . . . . . . . . . . . . Core 7 | . . . . . . 1 . 3 . . 1 1 . . . . . . . . . . . . 1 Reactor 8 | . . . . . . . . . . . . . . 2 . . 1 . . 2 . 2 1 . . Propulsion 43 | . 3 . . . 1 4 . 4 . 4 . 5 . 6 . . . . 1 2 2 4 2 . 5 Treads 20 | . 1 . . . . 1 . 1 . 1 . 3 . 3 . . . . 1 2 2 4 . . 1 Leg 7 | . . . . . . . . 2 . 1 . 1 . 3 . . . . . . . . . . . Wheel 10 | . 2 . . . 1 3 . 1 . 2 . 1 . . . . . . . . . . . . . Hover . | . . . . . . . . . . . . . . . . . . . . . . . . . . Flight 6 | . . . . . . . . . . . . . . . . . . . . . . . 2 . 4 Utility 93 | . 1 . . . 3 7 1 5 5 5 1 6 1 7 6 10 . 2 4 4 4 12 8 1 . Device 4 | . . . . . . 2 . . . . . . . . . . . . . . 1 1 . . . Storage 1 | . 1 . . . . . . . . . . . . . . . . . . . . . . . . Processor 2 | . . . . . 1 . . . . . . . . . . . . . . . 1 . . . . Hackware 81 | . . . . . 1 2 1 5 5 5 1 5 1 7 6 10 . 2 4 4 2 11 8 1 . Protection 5 | . . . . . 1 3 . . . . . 1 . . . . . . . . . . . . . Artifact . | . . . . . . . . . . . . . . . . . . . . . . . . . . Weapon 77 | . 1 . . 2 1 10 1 11 1 14 1 5 1 13 2 2 . . 1 3 3 4 1 . . Energy Gun 1 | . . . . . . 1 . . . . . . . . . . . . . . . . . . . Energy Cannon 16 | . . . . 1 1 2 . 2 . 1 . . 1 3 1 . . . . 1 2 1 . . . Ballistic Gun 20 | . 1 . . 1 . 6 . 5 . 6 . 1 . . . . . . . . . . . . . Ballistic Cannon . | . . . . . . . . . . . . . . . . . . . . . . . . . . Launcher 8 | . . . . . . . . 1 1 4 . 1 . 1 . . . . . . . . . . . Special Weapon 18 | . . . . . . 1 1 3 . 3 1 1 . 3 . 1 . . . 1 1 2 . . . Impact Weapon . | . . . . . . . . . . . . . . . . . . . . . . . . . . Slashing Weapon 8 | . . . . . . . . . . . . 2 . 4 1 . . . . 1 . . . . . Piercing Weapon . | . . . . . . . . . . . . . . . . . . . . . . . . . . Special Melee Weapon 6 | . . . . . . . . . . . . . . 2 . 1 . . 1 . . 1 1 . . Unidentified Prototypes 7 | . . . . . . . . . . 1 . . . . . . . . . . 2 2 . . 2 Parts Lost 67 | . . . . . . 7 1 2 . 3 . 3 . 7 . 2 . . 2 3 2 12 8 2 13 Power 5 | . . . . . . 1 . 1 . . . . . 1 . . . . . . . . 1 . 1 Propulsion 12 | . . . . . . 1 . 1 . 1 . 1 . 2 . . . . . 1 . 2 . . 3 Utility 36 | . . . . . . 3 1 . . 2 . 1 . 2 . 1 . . . 1 2 6 6 2 9 Weapon 14 | . . . . . . 2 . . . . . 1 . 2 . 1 . . 2 1 . 4 1 . . Highest Loss Streak 8 | . . . . . . 3 1 1 . 2 . 2 . 5 . 1 . . 2 1 2 7 8 2 5 To Critical Strikes . | . . . . . . . . . . . . . . . . . . . . . . . . . . Average Slot Usage (%) 87 | . 85 85 85 76 74 92 99 95 80 85 92 89 84 81 91 90 84 87 85 92 88 93 77 66 42 Engine 1 | . 14 14 14 14 9 . . . . 4 5 . . . . . . . . . . . . . . Core 2 | . . . . . . 8 9 9 7 2 1 7 6 1 . . . . . . . . . . 1 Reactor 2 | . . . . . . . . . . . . . . 2 5 5 5 5 4 4 4 3 3 . . Treads 6 | . 1 . . . . 2 . 4 . 1 . 9 13 7 11 11 10 10 8 8 8 7 7 . 1 Leg 1 | . 16 . . . . . . 4 7 2 . . . 5 . . . . . . . . . . . Wheel 6 | . 10 28 28 28 27 23 27 15 7 7 15 3 . . . . . . . . . . . . . Storage 6 | . 14 14 14 14 9 9 9 9 7 7 7 7 6 6 5 5 5 5 4 4 4 4 3 . . Hackware 42 | . . . . . 4 10 24 33 34 41 46 41 44 44 55 54 52 55 59 64 61 66 59 60 34 Protection 1 | . . . . . 1 19 8 . . . . 1 . . . . . . . . . . . . . Ballistic Gun 4 | . 22 28 28 18 12 8 10 10 6 9 8 1 . . . . . . . . . . . . . Special Weapon 3 | . . . . . . . 7 6 7 2 5 6 6 5 5 5 5 5 1 3 3 2 . . . Slashing Weapon 2 | . . . . . . . . . . . . 5 5 4 3 5 5 5 1 3 4 3 . . . Naked Turns . | . . . . . . . . . . . . . . . . . . . . . . . . . . Heaviest Build 113 | 13 88 88 88 97 100 112 101 100 93 100 100 97 100 104 111 104 104 101 101 110 113 113 101 . 7 Greatest Support 120 | 20 26 26 26 26 42 42 36 56 12 40 40 95 95 95 95 95 95 95 95 103 120 120 120 14 75 Greatest Overweight (x) 28 | . 3 3 3 3 2 4 3 7 7 7 2 8 1 28 1 1 1 1 1 1 1 2 . . . Average Overweight (x) 1 | . 1 3 3 3 2 2 2 3 7 3 2 2 . 1 1 1 1 1 . 1 . . . . . Largest Inventory Capacity 25 | . 25 25 25 25 25 25 25 25 25 25 25 25 25 25 25 25 25 25 25 25 25 25 25 5 5 Average Capacity 24 | . 13 25 25 25 25 25 25 25 25 25 25 25 25 25 25 25 25 25 25 25 25 25 23 5 5 Most Carried 25 | . 9 9 12 13 13 25 25 25 25 25 24 25 25 25 25 25 25 25 25 25 23 25 18 . 5 Average Carried 21 | . 7 9 10 12 11 21 24 24 23 23 22 24 24 24 23 22 25 24 23 22 21 20 13 . 3 Final Capacity 25 | 8 25 25 25 25 25 25 25 25 25 25 25 25 25 25 25 25 25 25 25 25 25 25 5 5 5 Final Carried 25 | 6 9 9 12 12 12 25 25 25 23 23 24 25 24 25 24 25 25 25 25 23 20 19 1 . 4 Class Distribution -------------------- 54% | Botlord-Mutant 30% | Bothacker-Mutant 10% | Mutant Dominant Class ---------------- Mutant | -10/Materials Mutant | -10/Mines Mutant | -10/Exiles Mutant | -9/Mines Mutant | -8/Materials Bothacker-Mutant | -8/Garrison Bothacker-Mutant | -8/Materials Bothacker-Mutant | -8/Garrison Bothacker-Mutant | -7/Factory Bothacker-Mutant | -7/Garrison Bothacker-Mutant | -7/Factory Bothacker-Mutant | -7/Garrison Botlord-Mutant | -6/Factory Botlord-Mutant | -6/Garrison Botlord-Mutant | -5/Factory Botlord-Mutant | -5/Garrison Botlord-Mutant | -4/Factory Botlord-Mutant | -4/Garrison Botlord-Mutant | -3/Research Botlord-Mutant | -3/Garrison Botlord-Mutant | -2/Research Botlord-Mutant | -2/Garrison Botlord-Mutant | -1/Access Sprinter | -1/Garrison Mutant | -1/Access Resources | -11 -10 -10 -10 -9 -8 -8 -8 -8 -7 -7 -7 -7 -6 -6 -5 -5 -4 -4 -3 -3 -2 -2 -1 -1 -1 ----------- Run | Scr Mat Min Exi Min Mat Gar Mat Gar Fac Gar Fac Gar Fac Gar Fac Gar Fac Gar Res Gar Res Gar Acc Gar Acc Matter Collected 4373 | 193 119 17 . 29 14 553 109 486 48 696 20 325 50 498 136 275 15 . 95 170 208 275 30 . 12 Remotely . | . . . . . . . . . . . . . . . . . . . . . . . . . . Salvage Created 4230 | . 255 . . 57 40 836 109 325 79 581 14 444 53 505 193 296 . . . 164 82 197 . . . Parts 179 | . 14 . . 9 4 33 6 17 4 21 2 10 6 21 10 6 . . . 4 1 11 . . . Haulers Intercepted 1 | . 1 . . . . . . . . . . . . . . . . . . . . . . . . Recyclers Shooed 2 | . . . . . . . . . . . . . . . . . . . . . 1 . . . 1 Parts Field Recycled . | . . . . . . . . . . . . . . . . . . . . . . . . . . Retrieved Matter . | . . . . . . . . . . . . . . . . . . . . . . . . . . Parts Self-Destructed . | . . . . . . . . . . . . . . . . . . . . . . . . . . Prevented . | . . . . . . . . . . . . . . . . . . . . . . . . . . Kills | -11 -10 -10 -10 -9 -8 -8 -8 -8 -7 -7 -7 -7 -6 -6 -5 -5 -4 -4 -3 -3 -2 -2 -1 -1 -1 ------- Run | Scr Mat Min Exi Min Mat Gar Mat Gar Fac Gar Fac Gar Fac Gar Fac Gar Fac Gar Res Gar Res Gar Acc Gar Acc Combat Hostiles Destroyed 66 | . 4 . . 3 . 12 1 8 3 9 . . 1 12 2 4 . . . 2 1 4 . . . Melee 12 | . . . . . . . . . . . . . . 4 . 4 . . . 1 . 3 . . . Guns 20 | . 4 . . 1 . 6 1 4 . 4 . . . . . . . . . . . . . . . Cannons 8 | . . . . . . 3 . 1 . . . . 1 1 . . . . . 1 . 1 . . . AOE 23 | . . . . 2 . 3 . 3 3 5 . . . 7 . . . . . . . . . . . Classes Destroyed 15 | . 4 . . . 2 3 1 1 . 1 1 . 1 . 1 . . . . . . . . . . Worker 2 | . . . . . . . . . . . 1 . . . 1 . . . . . . . . . . Builder 1 | . . . . . . . . . . . . . 1 . . . . . . . . . . . . Hauler 1 | . 1 . . . . . . . . . . . . . . . . . . . . . . . . Recycler 1 | . 1 . . . . . . . . . . . . . . . . . . . . . . . . Operator 1 | . . . . . 1 . . . . . . . . . . . . . . . . . . . . Watcher 2 | . . . . . 1 . . . . . . . . . . 1 . . . . . . . . . Swarmer 13 | . 2 . . 3 . . . 2 1 . . . . 3 . . . . . . . 2 . . . Cutter 1 | . . . . . . . . . . 1 . . . . . . . . . . . . . . . Grunt 35 | . 2 . . . . 8 . 5 2 9 . . . 6 . 2 . . . . . 1 . . . Brawler 1 | . . . . . . 1 . . . . . . . . . . . . . . . . . . . Duelist 1 | . . . . . . . . 1 . . . . . . . . . . . . . . . . . Sentry 7 | . . . . . . . 2 . . . . . . 2 . 2 . . . 1 . . . . . Hunter 4 | . . . . . . 1 . . . . . . . 1 . . . . . 1 1 . . . . Programmer 7 | . . . . . . 2 . . . . . . 1 1 2 . . . . . . 1 . . . Heavy 1 | . . . . . . . . . . . . . . . 1 . . . . . . . . . . Best Kill Streak 7 | . 4 . . 3 2 3 1 3 3 3 1 . 1 7 1 1 . . . 1 1 1 . . . Combat Bots Only 7 | . 2 . . 3 . 3 1 3 3 3 . . 1 7 1 1 . . . 1 1 1 . . . Max Kills in Single Turn 3 | . 1 . . 2 1 3 1 2 1 2 1 . 1 2 1 1 . . . 1 1 1 . . . Gunslinging 1 | . . . . . . . . 1 . . . . . . . . . . . . . . . . . Exploded 3 | . . . . 2 . 3 . 2 1 1 . . . 2 . . . . . . . . . . . Melee 1 | . . . . . . . . . . . . . . 1 . 1 . . . 1 . 1 . . . Uniques/NPCs Destroyed . | . . . . . . . . . . . . . . . . . . . . . . . . . . Combat | -11 -10 -10 -10 -9 -8 -8 -8 -8 -7 -7 -7 -7 -6 -6 -5 -5 -4 -4 -3 -3 -2 -2 -1 -1 -1 -------- Run | Scr Mat Min Exi Min Mat Gar Mat Gar Fac Gar Fac Gar Fac Gar Fac Gar Fac Gar Res Gar Res Gar Acc Gar Acc Damage Taken 11366 | . 251 . . 23 . 652 251 390 115 626 . 452 22 1128 229 790 64 . 184 547 587 1557 873 269 2356 Core 2890 | . 44 . . 7 . 116 84 80 53 113 . 82 5 264 41 70 . . 21 94 72 132 387 176 1049 Absorbed by Shields 659 | . . . . . . 92 . . . 119 . 101 . 29 . . . . . 71 . 198 . 49 . Core Remaining (%) 80 | 100 . . . 79 . . . 49 . . . 64 . 68 . 88 . 100 . 91 . 85 . . . Volleys Fired 418 | . 21 2 . 6 3 94 16 43 17 47 6 15 9 43 18 23 2 . 4 18 21 10 . . . Largest 2 | . 2 2 . 1 1 2 1 2 1 2 1 2 1 1 1 1 1 . 1 1 1 1 . . . Hottest 120 | . 60 40 . 60 120 120 28 120 30 63 33 63 120 120 120 5 5 . 5 120 120 120 . . . Shots Fired 523 | . 42 4 . 6 3 134 16 49 17 78 6 20 9 43 18 23 2 . 4 18 21 10 . . . Gun 268 | . 42 4 . 5 . 113 5 22 . 64 3 10 . . . . . . . . . . . . . Cannon 66 | . . . . 1 3 17 . 5 . 1 . . 3 7 9 . . . . 5 14 1 . . . Launcher 24 | . . . . . . . . 2 2 9 . 2 . 9 . . . . . . . . . . . Special 165 | . . . . . . 4 11 20 15 4 3 8 6 27 9 23 2 . 4 13 7 9 . . . Kinetic 253 | . 40 4 . 5 . 100 5 22 . 64 3 10 . . . . . . . . . . . . . Thermal 75 | . . . . . 3 29 . 5 . . . . 3 6 9 . . . . 5 14 1 . . . Explosive 24 | . . . . . . . . 2 2 9 . 2 . 9 . . . . . . . . . . . Electromagnetic 6 | . 2 . . 1 . 1 . . . 1 . . . 1 . . . . . . . . . . . Robot Hit Streak 45 | . 6 4 . 2 1 45 15 21 7 35 12 7 6 10 15 6 8 . 1 6 5 15 . . . Robot Miss Streak 3 | . 3 . . 2 . 2 3 1 1 2 1 1 1 2 1 2 . . 1 1 1 . . . . Penetration Max 1 | . . . . . . . 1 1 . . . 1 . . . . . . . . . . . . . Secondary Targets 3 | . . . . . . . . 1 . 2 . . . . . . . . . . . . . . . Max Gunslinging Chain 1 | . . . . . . . . 1 . 1 . . . . . . . . . . . . . . . Shots Hit Robots 455 | . 26 4 . 2 1 92 13 34 14 59 4 30 8 38 30 32 2 . 9 14 9 33 1 . . Core Hits 179 | . 12 2 . 4 2 40 3 14 4 36 1 10 1 29 5 5 . . . 2 3 5 . . 1 Critical Kills 2 | . . . . . . 1 . . . 1 . . . . . . . . . . . . . . . Critical Parts Destroyed . | . . . . . . . . . . . . . . . . . . . . . . . . . . Critical Strikes 8 | . . . . . . 2 . . . 1 . . . 2 . 1 . . . . . 2 . . . Burn 1 | . . . . . . 1 . . . . . . . . . . . . . . . . . . . Destroy 2 | . . . . . . 1 . . . 1 . . . . . . . . . . . . . . . Sever 5 | . . . . . . . . . . . . . . 2 . 1 . . . . . 2 . . . Melee Attacks 129 | . . . . . . . . . . . . 19 1 15 18 23 1 3 7 6 2 33 1 . . Impact . | . . . . . . . . . . . . . . . . . . . . . . . . . . Slashing 112 | . . . . . . . . . . . . 19 1 15 18 22 1 3 . 6 2 25 . . . Piercing . | . . . . . . . . . . . . . . . . . . . . . . . . . . Sneak Attacks 54 | . . . . . . . . . . . . 2 1 5 18 5 . . 6 2 . 14 1 . . Combat Hostiles 13 | . . . . . . . . . . . . . . 3 . 4 . . . 2 . 4 . . . Follow-up Attacks . | . . . . . . . . . . . . . . . . . . . . . . . . . . Damage Inflicted 12140 | . 270 37 . 98 106 1646 190 638 333 1454 50 1228 201 2012 1096 809 . . . 354 496 1089 . . 33 Guns 2717 | . 270 37 . 28 . 894 158 259 . 791 50 230 . . . . . . . . . . . . . Cannons 2246 | . . . . . 106 502 . 187 . . . . 136 239 383 . . . . 172 479 42 . . . Explosions 2648 | . . . . 70 . 250 . 192 333 663 . . . 1140 . . . . . . . . . . . Melee 4388 | . . . . . . . . . . . . 998 65 633 713 809 . . . 182 . 988 . . . Ramming 141 | . . . . . . . 32 . . . . . . . . . . . . . 17 59 . . 33 Kinetic 2529 | . 270 37 . 28 . 706 158 259 . 791 50 230 . . . . . . . . . . . . . Thermal 2429 | . . . . . 106 685 . 187 . . . . 136 239 383 . . . . 172 479 42 . . . Explosive 1928 | . . . . . . . . 192 333 487 . . . 916 . . . . . . . . . . . Electromagnetic 725 | . . . . 70 . 255 . . . 176 . . . 224 . . . . . . . . . . . Impact . | . . . . . . . . . . . . . . . . . . . . . . . . . . Slashing 4388 | . . . . . . . . . . . . 998 65 633 713 809 . . . 182 . 988 . . . Piercing . | . . . . . . . . . . . . . . . . . . . . . . . . . . Highest Corruption 13 | . . . . 2 . 8 8 8 . 2 2 2 . 3 2 2 . . . . . 9 3 3 13 Average Corruption 4 | . . . . 2 . 7 8 8 . 2 2 2 . 3 1 2 . . . . . 5 2 3 5 Corruption Purged . | . . . . . . . . . . . . . . . . . . . . . . . . . . Corruption Blocked . | . . . . . . . . . . . . . . . . . . . . . . . . . . Effects 140 | . . . . 2 . 32 7 29 . 8 . 16 . 10 2 22 . . . . . 2 1 1 8 Message Errors 31 | . . . . . . 9 2 9 . 1 . 3 . 4 . 2 . . . . . . . . 1 Matter Fused 41 | . . . . . . 14 4 2 . 3 . 3 . 4 1 7 . . . . . 1 . . 2 Heat Flow Errors 25 | . . . . 1 . 4 . 8 . 1 . 4 . . . 4 . . . . . . 1 . 2 Energy Discharges 16 | . . . . . . 2 . 5 . 1 . 4 . . . 3 . . . . . . . . 1 Parts Rejected 3 | . . . . . . . . . . . . . . . . . . . . . . 1 . 1 1 Data Loss (minor) 13 | . . . . 1 . 2 . 2 . 2 . . . . 1 5 . . . . . . . . . Data Loss (major) 3 | . . . . . . . 1 1 . . . 1 . . . . . . . . . . . . . Misfires 2 | . . . . . . . . 1 . . . 1 . . . . . . . . . . . . . Alerts 4 | . . . . . . . . 1 . . . . . 2 . 1 . . . . . . . . . Misdirections 1 | . . . . . . . . . . . . . . . . . . . . . . . . . 1 Weapon Failures 1 | . . . . . . 1 . . . . . . . . . . . . . . . . . . . Overload Shots . | . . . . . . . . . . . . . . . . . . . . . . . . . . Overflow Damage 433 | . . . . . . 22 . . 73 . . 32 85 91 11 73 . . . . . 46 . . . Projectiles 64 | . . . . . . 22 . . . . . . 40 1 1 . . . . . . . . . . Explosions 81 | . . . . . . . . . 73 . . . . 8 . . . . . . . . . . . Melee 288 | . . . . . . . . . . . . 32 45 82 10 73 . . . . . 46 . . . Knockbacks . | . . . . . . . . . . . . . . . . . . . . . . . . . . Impact . | . . . . . . . . . . . . . . . . . . . . . . . . . . Kinetic . | . . . . . . . . . . . . . . . . . . . . . . . . . . Secondary . | . . . . . . . . . . . . . . . . . . . . . . . . . . Self-Inflicted Damage 222 | . . . . . . . 15 6 . 112 . . . 77 . . . . . . . . . . 12 Shots 6 | . . . . . . . . 1 . 4 . . . 1 . . . . . . . . . . . Rammed 19 | . . . . . . . 3 . . . . . . . . . . . . . 1 8 . . 7 Targets Rammed 19 | . . . . . . . 3 . . . . . . . . . . . . . 1 8 . . 7 Kicked . | . . . . . . . . . . . . . . . . . . . . . . . . . . Crushed . | . . . . . . . . . . . . . . . . . . . . . . . . . . Highest Temperature 456 | . 20 . . 193 136 456 6 264 . 265 . 268 180 120 174 244 . . . 230 263 42 109 . 139 Average Temperature 98 | . 9 . . 91 60 109 6 113 . 81 . 111 100 42 77 106 . . . 119 115 23 63 . 67 Received Heat Transfer 1860 | . 111 . . . . 366 108 99 54 183 . 38 . 360 36 219 15 . 57 51 27 51 18 4 63 Effects 2 | . . . . . . 2 . . . . . . . . . . . . . . . . . . . Shutdowns 1 | . . . . . . 1 . . . . . . . . . . . . . . . . . . . Interference 1 | . . . . . . 1 . . . . . . . . . . . . . . . . . . . Siege Activations . | . . . . . . . . . . . . . . . . . . . . . . . . . . Robots Corrupted . | . . . . . . . . . . . . . . . . . . . . . . . . . . Combat Hostiles . | . . . . . . . . . . . . . . . . . . . . . . . . . . Parts Fried . | . . . . . . . . . . . . . . . . . . . . . . . . . . Impact Corruptions . | . . . . . . . . . . . . . . . . . . . . . . . . . . Robots Melted 3 | . . . . . . . . . . . . . . . 2 . . . . . 1 . . . . Combat Hostiles 3 | . . . . . . . . . . . . . . . 2 . . . . . 1 . . . . Parts Melted 25 | . . . . . 1 3 . 2 . . . . 2 3 5 . . . . 4 3 2 . . . Heat Transferred 5164 | . . . . . 240 1484 . 400 . . . . 240 480 720 . . . . 400 1120 80 . . . Parts Sabotaged . | . . . . . . . . . . . . . . . . . . . . . . . . . . Parts Stolen . | . . . . . . . . . . . . . . . . . . . . . . . . . . Parts Stripped . | . . . . . . . . . . . . . . . . . . . . . . . . . . Power Chain Reactions . | . . . . . . . . . . . . . . . . . . . . . . . . . . Missiles Intercepted . | . . . . . . . . . . . . . . . . . . . . . . . . . . Latent Energy Used 504 | . . . . 74 . 138 . . . 132 . . . 160 . . . . . . . . . . . LE Corruption 10 | . . . . 2 . 3 . . . 2 . . . 3 . . . . . . . . . . . Alert | -11 -10 -10 -10 -9 -8 -8 -8 -8 -7 -7 -7 -7 -6 -6 -5 -5 -4 -4 -3 -3 -2 -2 -1 -1 -1 ------- Run | Scr Mat Min Exi Min Mat Gar Mat Gar Fac Gar Fac Gar Fac Gar Fac Gar Fac Gar Res Gar Res Gar Acc Gar Acc Peak Influence 1165 | . 145 56 . 70 67 504 320 1165 626 962 516 841 458 473 287 898 864 799 555 273 206 595 110 54 229 Initial 611 | . . 56 . . 27 43 245 201 611 261 504 259 441 214 247 68 471 604 449 13 153 15 110 7 . Average 375 | . 48 56 . 54 48 297 270 675 508 717 395 518 303 338 214 469 631 727 342 169 144 291 94 8 78 Maximum Alert Level 4 | . . . . . . 2 1 4 2 3 2 3 2 2 1 3 3 3 2 1 1 2 . . 1 Low Security (%) 26 | . 100 100 . 100 100 9 . . . . . . . . 24 19 . . 33 67 96 27 100 100 93 Level 1 37 | . . . . . . 68 100 20 32 8 80 37 78 91 75 26 . . 13 32 3 52 . . 6 Level 2 21 | . . . . . . 22 . 40 67 34 19 33 21 8 . 29 78 2 53 . . 20 . . . Level 3 13 | . . . . . . . . 17 . 56 . 28 . . . 24 21 97 . . . . . . . Level 4 1 | . . . . . . . . 21 . . . . . . . . . . . . . . . . . Level 5 . | . . . . . . . . . . . . . . . . . . . . . . . . . . High Security . | . . . . . . . . . . . . . . . . . . . . . . . . . . Max Security . | . . . . . . . . . . . . . . . . . . . . . . . . . . Squads Dispatched 17 | . . . . . . . 1 . 4 . . . 4 . 3 . 1 . 1 . . . 1 . 2 Investigation 1 | . . . . . . . . . . . . . 1 . . . . . . . . . . . . Extermination 3 | . . . . . . . . . . . . . 1 . 1 . . . . . . . . . 1 Reinforcement 8 | . . . . . . . 1 . 2 . . . 1 . . . 1 . 1 . . . 1 . 1 Assault . | . . . . . . . . . . . . . . . . . . . . . . . . . . Garrison 5 | . . . . . . . . . 2 . . . 1 . 2 . . . . . . . . . . Intercept . | . . . . . . . . . . . . . . . . . . . . . . . . . . Searches Triggered . | . . . . . . . . . . . . . . . . . . . . . . . . . . Construction Impeded . | . . . . . . . . . . . . . . . . . . . . . . . . . . Haulers Reinforced . | . . . . . . . . . . . . . . . . . . . . . . . . . . Active Scanning Responses . | . . . . . . . . . . . . . . . . . . . . . . . . . . Cargo Convoy Interrupts . | . . . . . . . . . . . . . . . . . . . . . . . . . . Stealth | -11 -10 -10 -10 -9 -8 -8 -8 -8 -7 -7 -7 -7 -6 -6 -5 -5 -4 -4 -3 -3 -2 -2 -1 -1 -1 --------- Run | Scr Mat Min Exi Min Mat Gar Mat Gar Fac Gar Fac Gar Fac Gar Fac Gar Fac Gar Res Gar Res Gar Acc Gar Acc Distress Signals 8 | . . . . . . . 1 . 1 . . 1 . . 1 . . . . . 2 . 1 . 1 Communications Jammed 61 | . . . . . . . . . . . . . . . . . . . 2 . 59 . . . . Distress Signals 59 | . . . . . . . . . . . . . . . . . . . . . 59 . . . . Times Spotted 363 | . 7 . . 3 2 17 9 34 10 27 1 23 4 26 7 36 2 . 7 22 10 39 15 21 41 Peak Tracking Total 19 | . 4 . . 3 2 4 6 4 2 12 1 3 2 6 2 6 1 . 2 4 2 7 7 15 19 Tactical Retreats 18 | . . . . . . 4 . 2 . 1 . . . . . . . . . . . . 1 1 9 Traps | -11 -10 -10 -10 -9 -8 -8 -8 -8 -7 -7 -7 -7 -6 -6 -5 -5 -4 -4 -3 -3 -2 -2 -1 -1 -1 ------- Run | Scr Mat Min Exi Min Mat Gar Mat Gar Fac Gar Fac Gar Fac Gar Fac Gar Fac Gar Res Gar Res Gar Acc Gar Acc Traps Triggered 30 | . . . . . . 7 . 7 . 1 . 1 . . 2 7 . 1 . 2 . 1 . . 1 Indirectly . | . . . . . . . . . . . . . . . . . . . . . . . . . . Trap Hack Attempts 11 | . . . . . . . . . . . . . . 3 . . . . . 2 . 6 . . . Triggered . | . . . . . . . . . . . . . . . . . . . . . . . . . . Disarmed 2 | . . . . . . . . . . . . . . 1 . . . . . . . 1 . . . Reprogrammed . | . . . . . . . . . . . . . . . . . . . . . . . . . . Reused . | . . . . . . . . . . . . . . . . . . . . . . . . . . Traps Extracted . | . . . . . . . . . . . . . . . . . . . . . . . . . . Installed . | . . . . . . . . . . . . . . . . . . . . . . . . . . Triggered . | . . . . . . . . . . . . . . . . . . . . . . . . . . Machines | -11 -10 -10 -10 -9 -8 -8 -8 -8 -7 -7 -7 -7 -6 -6 -5 -5 -4 -4 -3 -3 -2 -2 -1 -1 -1 ---------- Run | Scr Mat Min Exi Min Mat Gar Mat Gar Fac Gar Fac Gar Fac Gar Fac Gar Fac Gar Res Gar Res Gar Acc Gar Acc Machines Disabled 35 | . 1 . . . . 4 . 4 1 2 1 3 . 2 . 5 2 3 . 2 . 5 . . . Max in Single Turn 1 | . 1 . . . . 1 . 1 1 1 1 1 . 1 . 1 . 1 . 1 . 1 . . . Garrison Relay 24 | . . . . . . 3 . 3 . 2 . 3 . 2 . 4 . 3 . 2 . 2 . . . Phase Generator 1 | . . . . . . . . . . . . . . . . . . . . . . 1 . . . Energy Cycler 1 | . . . . . . . . . . . . . . . . . . . . . . . . . 1 Machines Sabotaged . | . . . . . . . . . . . . . . . . . . . . . . . . . . Garrisons Compromised . | . . . . . . . . . . . . . . . . . . . . . . . . . . Overloaded Fab Kills . | . . . . . . . . . . . . . . . . . . . . . . . . . . Hacking | -11 -10 -10 -10 -9 -8 -8 -8 -8 -7 -7 -7 -7 -6 -6 -5 -5 -4 -4 -3 -3 -2 -2 -1 -1 -1 --------- Run | Scr Mat Min Exi Min Mat Gar Mat Gar Fac Gar Fac Gar Fac Gar Fac Gar Fac Gar Res Gar Res Gar Acc Gar Acc Machines Accessed 34 | . 1 . 1 . 4 2 1 1 1 1 1 2 3 1 2 2 2 . 1 3 2 2 1 . . Terminals 23 | . 1 . . . 3 2 . 1 . 1 . 2 2 1 1 2 1 . . 3 1 2 . . . Fabricators . | . . . . . . . . . . . . . . . . . . . . . . . . . . Repair Stations . | . . . . . . . . . . . . . . . . . . . . . . . . . . Recycling Units . | . . . . . . . . . . . . . . . . . . . . . . . . . . Scanalyzers . | . . . . . . . . . . . . . . . . . . . . . . . . . . Garrison Access 10 | . . . . . 1 . 1 . 1 . 1 . 1 . 1 . 1 . 1 . 1 . 1 . . Total Hacks 59 | . 1 . 1 . 8 4 1 1 1 2 1 5 7 2 3 4 4 . 2 5 4 2 1 . . Successful 33 | . . . 1 . 5 1 1 1 1 1 1 2 6 1 1 1 2 . 2 2 1 2 1 . . Failed 26 | . 1 . . . 3 3 . . . 1 . 3 1 1 2 3 2 . . 3 3 . . . . Catastrophic 6 | . 1 . . . . 1 . . . . . . . . 2 1 . . . 1 . . . . . Database Lockouts . | . . . . . . . . . . . . . . . . . . . . . . . . . . Manual 37 | . 1 . 1 . 6 1 . . . 2 . 2 6 2 2 2 3 . 1 4 3 1 . . . Terminals 42 | . 1 . . . 6 4 . 1 . 2 . 5 4 2 2 4 2 . . 5 2 2 . . . Fabricators . | . . . . . . . . . . . . . . . . . . . . . . . . . . Repair Stations . | . . . . . . . . . . . . . . . . . . . . . . . . . . Recycling Units . | . . . . . . . . . . . . . . . . . . . . . . . . . . Scanalyzers . | . . . . . . . . . . . . . . . . . . . . . . . . . . Garrison Access 16 | . . . . . 2 . 1 . 1 . 1 . 3 . 1 . 2 . 2 . 2 . 1 . . Terminal Hacks 17 | . . . 1 . 2 1 . 1 . 1 . 2 2 1 . 1 1 . . 2 . 2 . . . Open Door 5 | . . . . . . . . 1 . . . 1 . . . 1 . . . 1 . 1 . . . Terminal Index 3 | . . . . . 1 . . . . . . . 1 . . . 1 . . . . . . . . Garrison Index 1 | . . . . . 1 . . . . . . . . . . . . . . . . . . . . Recall Reinforcements 1 | . . . . . . . . . . . . . 1 . . . . . . . . . . . . Garrison Registry 5 | . . . . . . . . . . 1 . 1 . 1 . . . . . 1 . 1 . . . Security Stations 1 | . . . . . . 1 . . . . . . . . . . . . . . . . . . . EX-Prototype ID Bank 1 | . . . 1 . . . . . . . . . . . . . . . . . . . . . . Fabricator Hacks . | . . . . . . . . . . . . . . . . . . . . . . . . . . Repair Station Hacks . | . . . . . . . . . . . . . . . . . . . . . . . . . . Recycling Unit Hacks . | . . . . . . . . . . . . . . . . . . . . . . . . . . Scanalyzer . | . . . . . . . . . . . . . . . . . . . . . . . . . . Garrison Access Hacks 10 | . . . . . 1 . 1 . 1 . 1 . 1 . 1 . 1 . 1 . 1 . 1 . . Unlock Access 10 | . . . . . 1 . 1 . 1 . 1 . 1 . 1 . 1 . 1 . 1 . 1 . . Unauthorized Hacks 6 | . . . . . 2 . . . . . . . 3 . . . . . 1 . . . . . . Terminals 3 | . . . . . 2 . . . . . . . 1 . . . . . . . . . . . . Assimilate 1 | . . . . . 1 . . . . . . . . . . . . . . . . . . . . Botnet 2 | . . . . . 1 . . . . . . . 1 . . . . . . . . . . . . Fabricators . | . . . . . . . . . . . . . . . . . . . . . . . . . . Repair Stations . | . . . . . . . . . . . . . . . . . . . . . . . . . . Recycling Units . | . . . . . . . . . . . . . . . . . . . . . . . . . . Scanalyzers . | . . . . . . . . . . . . . . . . . . . . . . . . . . Garrison Access 3 | . . . . . . . . . . . . . 2 . . . . . 1 . . . . . . Restock 2 | . . . . . . . . . . . . . 1 . . . . . 1 . . . . . . Reprogram 1 | . . . . . . . . . . . . . 1 . . . . . . . . . . . . Data Cores Recovered 2 | . . . . . 1 . . . . . . . . . . . . . . . 1 . . . . Used 1 | . . . . . 1 . . . . . . . . . . . . . . . . . . . . Hacking Detections 25 | . 1 . . . 3 2 . . 1 1 1 1 3 1 1 2 2 . 1 2 2 . 1 . . Full Trace Events . | . . . . . . . . . . . . . . . . . . . . . . . . . . Feedback Events . | . . . . . . . . . . . . . . . . . . . . . . . . . . Feedback Blocked . | . . . . . . . . . . . . . . . . . . . . . . . . . . Robot Schematics Acquired . | . . . . . . . . . . . . . . . . . . . . . . . . . . Robots Built . | . . . . . . . . . . . . . . . . . . . . . . . . . . Authchips . | . . . . . . . . . . . . . . . . . . . . . . . . . . Time . | . . . . . . . . . . . . . . . . . . . . . . . . . . Total Robot Build Rating . | . . . . . . . . . . . . . . . . . . . . . . . . . . Part Schematics Acquired . | . . . . . . . . . . . . . . . . . . . . . . . . . . Parts Built . | . . . . . . . . . . . . . . . . . . . . . . . . . . Authchips . | . . . . . . . . . . . . . . . . . . . . . . . . . . Time . | . . . . . . . . . . . . . . . . . . . . . . . . . . Total Part Build Rating . | . . . . . . . . . . . . . . . . . . . . . . . . . . Parts Repaired . | . . . . . . . . . . . . . . . . . . . . . . . . . . Time . | . . . . . . . . . . . . . . . . . . . . . . . . . . Parts Recycled . | . . . . . . . . . . . . . . . . . . . . . . . . . . Recycled Matter . | . . . . . . . . . . . . . . . . . . . . . . . . . . Retrieved Matter . | . . . . . . . . . . . . . . . . . . . . . . . . . . Retrieved Components . | . . . . . . . . . . . . . . . . . . . . . . . . . . Parts Scanalyzed . | . . . . . . . . . . . . . . . . . . . . . . . . . . Part Schematics Acquired . | . . . . . . . . . . . . . . . . . . . . . . . . . . Parts Damaged . | . . . . . . . . . . . . . . . . . . . . . . . . . . Bothacking | -11 -10 -10 -10 -9 -8 -8 -8 -8 -7 -7 -7 -7 -6 -6 -5 -5 -4 -4 -3 -3 -2 -2 -1 -1 -1 ------------ Run | Scr Mat Min Exi Min Mat Gar Mat Gar Fac Gar Fac Gar Fac Gar Fac Gar Fac Gar Res Gar Res Gar Acc Gar Acc Used RIF Installer 11 | . . . . . . 1 . 1 . 1 . 1 . 1 . 2 . 1 . 1 . 1 . 1 . Command Fork 1 | . . . . . . . . . . . . . . 1 . . . . . . . . . . . Threat Obfuscator 2 | . . . . . . . . . . 1 . . . . . . . 1 . . . . . . . Signal Jammer 1 | . . . . . . . . . . . . 1 . . . . . . . . . . . . . Robot Detection 1 | . . . . . . . . . . . . . . . . 1 . . . . . . . . . Structural Interface 1 | . . . . . . . . 1 . . . . . . . . . . . . . . . . . Autooverride 2 | . . . . . . . . . . . . . . . . . . . . 1 . 1 . . . Autoassimilate 2 | . . . . . . . . . . . . . . . . 1 . . . . . . . 1 . Robots Hacked 147 | . . . . . . 2 5 12 6 2 1 7 2 15 6 19 3 . 5 14 3 20 7 13 5 Non-combat 18 | . . . . . . . 3 . 3 . 1 . 1 . 3 . 1 . 2 . 2 1 1 . . Combat 129 | . . . . . . 2 2 12 3 2 . 7 1 15 3 19 2 . 3 14 1 19 6 13 5 Autooverrided 17 | . . . . . . . . . . . . . . . . . . . . . . 7 4 5 1 Autoassimilated 37 | . . . . . . . . . . . . . . . . 7 1 . 1 7 . 7 2 8 4 Robot Hacks Applied 109 | . . . . . . 2 6 12 11 2 2 7 4 15 7 12 2 . 7 7 4 8 1 . . parse_system 1 | . . . . . . . . . . . . . . . . . . . . . . 1 . . . map_walls 2 | . . . . . . . 1 . 1 . . . . . . . . . . . . . . . . drop_inventory 5 | . . . . . . . 1 . . . . . . . 1 . 1 . . . 1 . 1 . . ignore_parts 2 | . . . . . . . . . . . . . . . 2 . . . . . . . . . . purge_threat 11 | . . . . . . . . . 4 . 1 . 1 . . . . . 3 . . 2 . . . map_route 3 | . . . . . . . 1 . . . . . . . . . . . 1 . 1 . . . . find_garrison 6 | . . . . . . . 1 . 1 . . . 1 . 1 . 1 . . . 1 . . . . scatter_targeting 3 | . . . . . . . . . . . . . . 2 . 1 . . . . . . . . . disrupt_area 2 | . . . . . . . . . . . . . . 2 . . . . . . . . . . . reboot_system 7 | . . . . . . . 1 3 1 . . . . 1 1 . . . . . . . . . . overwrite_iff 16 | . . . . . . . . 3 . 2 . 3 . 2 . 5 . . . 1 . . . . . streamctrl_high 1 | . . . . . . . . . . . . . . . 1 . . . . . . . . . . formatsys_low 6 | . . . . . . . . . 2 . 1 . 1 . . . . . 1 . . 1 . . . formatsys_high 44 | . . . . . . 2 1 6 2 . . 4 1 8 1 6 . . 2 6 1 4 . . . Relay Couplers Released 103 | . . . . . . 9 . 12 . 6 . 14 . 10 . 17 . 13 4 10 . 8 . . . Machine Destruction 96 | . . . . . . 9 . 12 . 6 . 14 . 10 . 14 . 13 . 10 . 8 . . . Programmers 7 | . . . . . . . . . . . . . . . . 3 . . 4 . . . . . . Attached 74 | . . . . . . 2 1 5 5 3 1 5 1 7 3 10 . 2 4 4 1 11 8 1 . Fabnet Peak Effective % . | . . . . . . . . . . . . . . . . . . . . . . . . . . Robots Rewired 41 | . . . . . . . . 7 . . . 3 . . . 16 . . . . . 15 . . . Allies Hacked 6 | . . . . . . . . . . . . . . . . . . . . . . 2 2 1 1 Hacks Repelled . | . . . . . . . . . . . . . . . . . . . . . . . . . . Allies | -11 -10 -10 -10 -9 -8 -8 -8 -8 -7 -7 -7 -7 -6 -6 -5 -5 -4 -4 -3 -3 -2 -2 -1 -1 -1 -------- Run | Scr Mat Min Exi Min Mat Gar Mat Gar Fac Gar Fac Gar Fac Gar Fac Gar Fac Gar Res Gar Res Gar Acc Gar Acc Total Allies 174 | . . . . . . 2 1 16 4 2 1 12 3 10 2 39 1 . 4 18 1 34 6 13 5 Largest Group 24 | . . . . . . 1 1 10 13 13 6 10 4 4 3 24 20 13 13 12 11 18 3 5 2 Highest-Rated Group 1140 | . . . . . . 15 15 213 308 304 141 328 128 97 166 1002 885 580 580 631 567 1140 90 330 133 Highest-Rated Ally 148 | . . . . . . 15 15 31 32 32 32 80 80 47 137 99 89 73 73 73 64 148 58 69 69 Total Orders 17 | . . . . . . . . . . 7 . 6 . 3 . . . . . . . 1 . . . STAY 8 | . . . . . . . . . . 4 . 1 . 2 . . . . . . . 1 . . . FOLLOW 9 | . . . . . . . . . . 3 . 5 . 1 . . . . . . . . . . . Ally Attacks 952 | . . . . . . 4 3 67 48 58 . 70 6 32 37 135 38 4 42 111 42 212 8 15 20 Total Damage 28016 | . . . . . . 67 72 1275 806 1363 . 2113 122 582 1057 3882 2502 146 1458 3739 1199 6163 146 639 685 Kills 194 | . . . . . . 1 . 21 5 14 . 26 . 3 3 27 15 1 9 20 9 33 1 3 3 Allies Corrupted 14 | . . . . . . . . . . . . . . . 2 . . . . 3 . 7 . 2 . Allies Melted 2 | . . . . . . . . . . . . . . . . 1 1 . . . . . . . . Intel | -11 -10 -10 -10 -9 -8 -8 -8 -8 -7 -7 -7 -7 -6 -6 -5 -5 -4 -4 -3 -3 -2 -2 -1 -1 -1 ------- Run | Scr Mat Min Exi Min Mat Gar Mat Gar Fac Gar Fac Gar Fac Gar Fac Gar Fac Gar Res Gar Res Gar Acc Gar Acc Robot Analysis Total . | . . . . . . . . . . . . . . . . . . . . . . . . . . Derelict Logs Recovered 1 | . . 1 . . . . . . . . . . . . . . . . . . . . . . . Drone Launches . | . . . . . . . . . . . . . . . . . . . . . . . . . . Drone Recoveries . | . . . . . . . . . . . . . . . . . . . . . . . . . . Exploration | -11 -10 -10 -10 -9 -8 -8 -8 -8 -7 -7 -7 -7 -6 -6 -5 -5 -4 -4 -3 -3 -2 -2 -1 -1 -1 ------------- Run | Scr Mat Min Exi Min Mat Gar Mat Gar Fac Gar Fac Gar Fac Gar Fac Gar Fac Gar Res Gar Res Gar Acc Gar Acc Turns Passed 14525 | . 276 225 294 141 259 1176 249 925 433 818 176 1225 338 1286 527 1584 393 441 402 1044 468 1176 329 53 287 Spaces Moved 7551 | 1 137 163 216 94 162 628 140 468 203 438 126 639 196 445 181 564 160 172 129 415 210 571 218 173 702 Core 191 | . . . . . . . . . . . . . . 3 . . . . . . . . . . 188 Treads 3440 | . . . . . . . . . . . . 371 196 290 181 564 160 172 129 415 210 571 179 . 2 Legs 226 | 1 72 . . . . . . 1 . . . . . 152 . . . . . . . . . . . Wheels 2970 | . 65 163 216 94 162 628 140 467 203 438 126 268 . . . . . . . . . . . . . Hover . | . . . . . . . . . . . . . . . . . . . . . . . . . . Flight 724 | . . . . . . . . . . . . . . . . . . . . . . . 39 173 512 Fastest Speed 27 | 120 95 135 135 135 123 116 120 135 195 125 125 125 160 157 237 237 237 237 157 225 160 147 27 27 30 Average Speed 160 | 120 125 135 135 135 123 126 120 148 195 144 125 169 161 239 237 237 237 237 231 234 195 168 126 28 37 Slowest Speed 1450 | 120 135 135 135 135 123 150 135 195 195 195 125 240 240 1450 237 237 237 237 250 250 232 295 147 30 145 Overloaded Moves . | . . . . . . . . . . . . . . . . . . . . . . . . . . Propulsion Burnouts . | . . . . . . . . . . . . . . . . . . . . . . . . . . Robots Hopped 24 | . . . . . . . . . . . . 2 . . . . . . . . . . 3 . 19 Cave-ins Triggered . | . . . . . . . . . . . . . . . . . . . . . . . . . . Exploration Rate (%) 32 | 2 33 43 61 28 19 61 18 58 7 55 5 66 5 48 8 68 6 48 5 70 9 55 7 33 22 Regions Visited 25 Branch Regions 3 Pre-discovered Areas 1 | . . 1 . . . . . . . . . . . . . . . . . . . . . . . Known Exits Taken 10 | . . . . . 1 . 1 . 1 . 1 . 1 . 1 . 1 . 1 . 1 . 1 . . Unknown Exits Taken 5 | 1 1 1 1 1 . . . . . . . . . . . . . . . . . . . . . Scrap Searched 1 | . . 1 . . . . . . . . . . . . . . . . . . . . . . . Spaces Dug 16 | . . . . . . . . . . 5 . 8 . . . . 1 . . . 2 . . . . Terrain Destroyed 151 | . . . . . . 8 . 1 29 61 . 17 . 32 . . 1 . . . 2 . . . . Melee 3 | . . . . . . . . . . . . . . . . . 1 . . . 2 . . . . Projectile 5 | . . . . . . . . 1 . 4 . . . . . . . . . . . . . . . AOE 142 | . . . . . . 8 . . 29 56 . 17 . 32 . . . . . . . . . . . Terrain Rammed . | . . . . . . . . . . . . . . . . . . . . . . . . . . Walls Destroyed . | . . . . . . . . . . . . . . . . . . . . . . . . . . Machines Disabled . | . . . . . . . . . . . . . . . . . . . . . . . . . . Actions | -11 -10 -10 -10 -9 -8 -8 -8 -8 -7 -7 -7 -7 -6 -6 -5 -5 -4 -4 -3 -3 -2 -2 -1 -1 -1 --------- Run | Scr Mat Min Exi Min Mat Gar Mat Gar Fac Gar Fac Gar Fac Gar Fac Gar Fac Gar Res Gar Res Gar Acc Gar Acc Total 9342 | . 203 164 218 102 217 877 211 656 230 541 139 737 211 607 236 771 171 202 231 473 248 745 272 175 705 Wait 503 | . 34 . . . 44 67 41 5 1 13 . 9 3 50 4 49 6 20 78 14 . 30 32 3 . Move 7491 | . 136 162 215 93 162 627 140 467 203 437 126 635 195 444 181 563 160 171 128 414 210 570 213 171 668 Hop 18 | . . . . . . . . . . . . 1 . . . . . . . . . . 2 . 15 Pick Up 130 | . 5 . 3 . 3 18 4 12 2 7 2 12 . 12 2 14 . 2 4 3 1 11 7 . 6 Fast Attach 66 | . . . . . 1 12 . 6 . 3 1 7 . 10 2 1 1 2 3 4 3 6 . . 4 Attach 85 | . 2 . . 1 3 5 1 2 5 7 . 3 1 7 2 10 . . 3 4 2 12 12 1 2 Detach 6 | . . . . 1 . 1 1 . . 3 . . . . . . . . . . . . . . . Swap 78 | . 3 . . 1 1 5 1 15 1 14 2 7 1 11 4 1 . . . 3 4 4 . . . Drop 90 | . 2 . . . . 8 4 12 . 2 1 12 . 10 1 8 1 2 2 4 4 10 5 . 2 Fire 418 | . 21 2 . 6 3 94 16 43 17 47 6 15 9 43 18 23 2 . 4 18 21 10 . . . Melee 129 | . . . . . . . . . . . . 19 1 15 18 23 1 3 7 6 2 33 1 . . Ram 7 | . . . . . . . 3 . . . . . . . . . . . . . . . . . 4 Kick . | . . . . . . . . . . . . . . . . . . . . . . . . . . Crush 12 | . . . . . . . . . . . . . . . . . . . . . 1 8 . . 3 Escape Stasis 116 | . . . . . . 40 . 48 . 8 . 8 . . 4 8 . . . . . . . . . Rewire 182 | . . . . . . . . 46 1 . 1 9 1 2 . 71 . 2 2 1 . 45 . . 1 Trap 11 | . . . . . . . . . . . . . . 3 . . . . . 2 . 6 . . . Miscellaneous . | . . . . . . . . . . . . . . . . . . . . . . . . . . Route ------- -11/Scrapyard -10/Materials -10/Mines -10/Exiles -9/Mines -8/Materials (discovered 2 exits: [*Sto] / Gar) -8/Garrison (discovered 2 exits: *Mat x2) -8/Materials (discovered 3 exits: [*Sto x2] / Gar) -8/Garrison -7/Factory -7/Garrison (discovered 3 exits: *Fac x3) -7/Factory -7/Garrison (discovered 3 exits: *Fac x3) -6/Factory -6/Garrison (discovered 3 exits: *Fac x3) -5/Factory -5/Garrison (discovered 2 exits: *Fac x2) -4/Factory -4/Garrison -3/Research -3/Garrison (discovered 3 exits: *Res x3) -2/Research -2/Garrison (discovered 4 exits: *Acc x3 / [Res]) -1/Access -1/Garrison -1/Access History --------- Turn | Location | Event 1 | -11/Scrapyard | Discovered new exit (range 0) 1 | -11/Scrapyard | Entered Materials 221 | -10/Materials | Discovered new exit (range 8) 277 | -10/Materials | Entered Mines 300 | -10/Mines | Build established: Mutant 496 | -10/Mines | Deemed a non-threat by the Exiles lab entrance 496 | -10/Mines | Discovered new exit (range 5) 502 | -10/Mines | Entered Exiles 535 | -10/Exiles | Met 8R-AWN 559 | -10/Exiles | Met EX-HEX 594 | -10/Exiles | Met EX-BIN 613 | -10/Exiles | Aligned with FarCom system 615 | -10/Exiles | Given EX-Vault access code 648 | -10/Exiles | Opened EX-Vault 660 | -10/Exiles | Found Gui. Plasma Cannon 664 | -10/Exiles | Found Latent Energy Streamer 671 | -10/Exiles | Found Modified TNC 699 | -10/Exiles | Warned to stay clear of 0b10 Research branches 736 | -10/Exiles | Met EX-DEC 785 | -10/Exiles | Discovered new exit (range 10) 796 | -10/Exiles | Stole three prototypes: Modified TNC, Latent Energy Streamer, Gui. Plasma Cannon 796 | -10/Exiles | Entered Mines 930 | -9/Mines | Discovered new exit (range 7) 937 | -9/Mines | Entered Materials 937 | -8/Materials | Evolved 4 slots: Propulsion x1, Utility x3 1167 | -8/Materials | Discovered new exit (range 8) 1196 | -8/Materials | Identified exit to Garrison 1196 | -8/Materials | Entered Garrison 1216 | -8/Garrison | Triggered checkpoint 1270 | -8/Garrison | Garrison Relay disabled 1363 | -8/Garrison | Installed Relay Interface Framework 1492 | -8/Garrison | Triggered checkpoint 1528 | -8/Garrison | Triggered checkpoint 1686 | -8/Garrison | Build established: Bothacker-Mutant 1872 | -8/Garrison | Discovered new exit (range 11) 1896 | -8/Garrison | Triggered checkpoint 1960 | -8/Garrison | Lost 3 parts (1u2w) 2110 | -8/Garrison | Garrison Relay disabled 2210 | -8/Garrison | Triggered checkpoint 2254 | -8/Garrison | Learned Materials security intel 2272 | -8/Garrison | Discovered new exit (range 10) 2296 | -8/Garrison | Triggered checkpoint 2339 | -8/Garrison | Garrison Relay disabled 2372 | -8/Garrison | Entered Materials 2372 | -8/Materials | Discovered new exit (range 7) 2586 | -8/Materials | Discovered new exit (range 25) 2621 | -8/Materials | Identified exit to Garrison 2621 | -8/Materials | Entered Garrison 2640 | -8/Garrison | Triggered checkpoint 2794 | -8/Garrison | Triggered checkpoint 2810 | -8/Garrison | Garrison Relay disabled 2986 | -8/Garrison | Triggered checkpoint 3023 | -8/Garrison | Expanded RIF knowledge: Structural Interface 3105 | -8/Garrison | Garrison Relay disabled 3182 | -8/Garrison | Triggered checkpoint 3186 | -8/Garrison | Triggered checkpoint 3207 | -8/Garrison | Triggered checkpoint 3269 | -8/Garrison | Garrison Relay disabled 3288 | -8/Garrison | Triggered checkpoint 3339 | -8/Garrison | Core integrity fell below 50% 3342 | -8/Garrison | Discovered new exit (range 14) 3546 | -8/Garrison | Entered Factory 3546 | -7/Factory | Accompanied by 10 allies 3546 | -7/Factory | Evolved 2 slots: Utility x2 3548 | -7/Factory | FarCom data flow suspended 3924 | -7/Factory | Garrison activated, responded to threat 3926 | -7/Factory | Garrison activated, responded to threat 3978 | -7/Factory | Identified exit to Garrison 3979 | -7/Factory | Entered Garrison 3979 | -7/Garrison | Accompanied by 13 allies 3996 | -7/Garrison | Garrison Relay disabled 4036 | -7/Garrison | Triggered checkpoint 4121 | -7/Garrison | Garrison Relay disabled 4256 | -7/Garrison | Triggered checkpoint 4258 | -7/Garrison | Triggered checkpoint 4336 | -7/Garrison | Discovered new exit (range 62) 4336 | -7/Garrison | Discovered new exit (range 57) 4336 | -7/Garrison | Discovered new exit (range 12) 4384 | -7/Garrison | Triggered checkpoint 4404 | -7/Garrison | Triggered checkpoint 4498 | -7/Garrison | Expanded RIF knowledge: Threat Obfuscation 4516 | -7/Garrison | Triggered checkpoint 4797 | -7/Garrison | Entered Factory 4797 | -7/Factory | Accompanied by 5 allies 4973 | -7/Factory | Identified exit to Garrison 4973 | -7/Factory | Entered Garrison 4973 | -7/Garrison | Accompanied by 6 allies 4997 | -7/Garrison | Found embedded Infiltrators 5066 | -7/Garrison | Triggered checkpoint 5244 | -7/Garrison | Discovered new exit (range 14) 5352 | -7/Garrison | Triggered checkpoint 5397 | -7/Garrison | Garrison Relay disabled 5424 | -7/Garrison | Triggered checkpoint 5580 | -7/Garrison | Triggered checkpoint 5610 | -7/Garrison | Triggered checkpoint 5656 | -7/Garrison | Triggered checkpoint 5670 | -7/Garrison | Discovered new exit (range 34) 5670 | -7/Garrison | Discovered new exit (range 73) 5670 | -7/Garrison | Discovered new exit (range 20) 5674 | -7/Garrison | Garrison Relay disabled 5834 | -7/Garrison | Triggered checkpoint 5865 | -7/Garrison | Expanded RIF knowledge: Signal Jamming 5902 | -7/Garrison | Garrison Relay disabled 6188 | -7/Garrison | Build established: Botlord-Mutant 6198 | -7/Garrison | Entered Factory 6198 | -6/Factory | Accompanied by 4 allies 6198 | -6/Factory | Evolved 2 slots: Utility x2 6519 | -6/Factory | Identified exit to Garrison 6528 | -6/Factory | Garrison activated, responded to threat 6536 | -6/Factory | Entered Garrison 6536 | -6/Garrison | Accompanied by 4 allies 6593 | -6/Garrison | Found Relay Coupler [Proto] 6596 | -6/Garrison | Found Relay Coupler [Proto] 6600 | -6/Garrison | Found Relay Coupler [Proto] 6603 | -6/Garrison | Found Relay Coupler [Proto] 6718 | -6/Garrison | Garrison Relay disabled 6742 | -6/Garrison | Triggered checkpoint 6890 | -6/Garrison | Discovered new exit (range 38) 6890 | -6/Garrison | Discovered new exit (range 52) 6890 | -6/Garrison | Discovered new exit (range 46) 6924 | -6/Garrison | Triggered checkpoint 6956 | -6/Garrison | Triggered checkpoint 6963 | -6/Garrison | Triggered checkpoint 6999 | -6/Garrison | Destroyed 7 combat bots 7058 | -6/Garrison | Triggered checkpoint 7105 | -6/Garrison | Lost 5 parts (1p1n2u1w) 7451 | -6/Garrison | Expanded RIF knowledge: Command Fork 7466 | -6/Garrison | Garrison Relay disabled 7822 | -6/Garrison | Entered Factory 7822 | -5/Factory | Accompanied by 3 allies 7822 | -5/Factory | Evolved 2 slots: Utility x2 8151 | -5/Factory | Garrison activated, responded to threat 8349 | -5/Factory | Identified exit to Garrison 8349 | -5/Factory | Entered Garrison 8404 | -5/Garrison | Expanded RIF knowledge: Robot Detection 8457 | -5/Garrison | Expanded RIF knowledge: Autoassimilate 8507 | -5/Garrison | Garrison Relay disabled 8516 | -5/Garrison | Triggered checkpoint 8665 | -5/Garrison | Spotted B-75 Beast 8679 | -5/Garrison | Assimilated Beast 6a with formatsys_high 8690 | -5/Garrison | Triggered checkpoint 8690 | -5/Garrison | Triggered checkpoint 8732 | -5/Garrison | Triggered checkpoint 8738 | -5/Garrison | Triggered checkpoint 8898 | -5/Garrison | Triggered checkpoint 8943 | -5/Garrison | Garrison Relay disabled 8999 | -5/Garrison | Rewired Striker 9010 | -5/Garrison | Rewired Striker 9232 | -5/Garrison | Discovered new exit (range 10) 9282 | -5/Garrison | Triggered checkpoint 9295 | -5/Garrison | Rescued a captive Derelict 9311 | -5/Garrison | Rescued a captive Derelict 9404 | -5/Garrison | Garrison Relay disabled 9620 | -5/Garrison | Spotted B-75 Beast 9624 | -5/Garrison | Allies destroyed B-75 Beast 9782 | -5/Garrison | Discovered new exit (range 3) 9816 | -5/Garrison | Triggered checkpoint 9843 | -5/Garrison | Garrison Relay disabled 9933 | -5/Garrison | Entered Factory 9933 | -4/Factory | Accompanied by 20 allies 9933 | -4/Factory | Evolved 2 slots: Utility x2 10320 | -4/Factory | Identified exit to Garrison 10326 | -4/Factory | Entered Garrison 10326 | -4/Garrison | Discovered recently destroyed garrison 10326 | -4/Garrison | Accompanied by 13 allies 10372 | -4/Garrison | Expanded RIF knowledge: Threat Obfuscation 10603 | -4/Garrison | Garrison Relay disabled 10647 | -4/Garrison | Discovered new exit (range 9) 10689 | -4/Garrison | Garrison Relay disabled 10700 | -4/Garrison | Garrison Relay disabled 10767 | -4/Garrison | Entered Research 10767 | -3/Research | Accompanied by 13 allies 10767 | -3/Research | Evolved 2 slots: Utility x2 11038 | -3/Research | Identified exit to Garrison 11169 | -3/Research | Entered Garrison 11169 | -3/Garrison | Accompanied by 12 allies 11206 | -3/Garrison | Triggered checkpoint 11373 | -3/Garrison | Garrison Relay disabled 11462 | -3/Garrison | Allies destroyed Striker 11476 | -3/Garrison | Triggered checkpoint 11498 | -3/Garrison | Discovered new exit (range 45) 11498 | -3/Garrison | Discovered new exit (range 37) 11498 | -3/Garrison | Discovered new exit (range 61) 11536 | -3/Garrison | Triggered checkpoint 11762 | -3/Garrison | Triggered checkpoint 11802 | -3/Garrison | Rescued a captive Derelict 12052 | -3/Garrison | Triggered checkpoint 12101 | -3/Garrison | Expanded RIF knowledge: Autooverride 12213 | -3/Garrison | Entered Research 12213 | -2/Research | Accompanied by 11 allies 12213 | -2/Research | Evolved 2 slots: Utility x2 12596 | -2/Research | Found Prototype Processor 12596 | -2/Research | Identified Exp. Core Analyzer 12681 | -2/Research | Identified exit to Garrison 12681 | -2/Research | Entered Garrison 12681 | -2/Garrison | Accompanied by 2 allies 12718 | -2/Garrison | Triggered checkpoint 12758 | -2/Garrison | Triggered checkpoint 12762 | -2/Garrison | Q-Series assembled to engage unique threat in Access 12821 | -2/Garrison | Garrison Relay disabled 12928 | -2/Garrison | Triggered checkpoint 12993 | -2/Garrison | Garrison Relay disabled 13119 | -2/Garrison | Found Relay Coupler [Proto] 13121 | -2/Garrison | Found Relay Coupler [Proto] 13124 | -2/Garrison | Found Relay Coupler [Proto] 13126 | -2/Garrison | Found Relay Coupler [Proto] 13253 | -2/Garrison | Discovered new exit (range 36) 13253 | -2/Garrison | Discovered new exit (range 66) 13253 | -2/Garrison | Discovered new exit (range 73) 13253 | -2/Garrison | Discovered new exit (range 83) 13313 | -2/Garrison | Spotted B-90 Cyclops 13314 | -2/Garrison | Autoassimilated Cyclops 9a with RIF 13316 | -2/Garrison | Triggered checkpoint 13334 | -2/Garrison | Triggered checkpoint 13348 | -2/Garrison | Triggered checkpoint 13436 | -2/Garrison | Expanded RIF knowledge: Autooverride 13498 | -2/Garrison | Found Prototype Device 13498 | -2/Garrison | Identified Exp. Shield Generator 13634 | -2/Garrison | Q-Series assembled to engage unique threat in Access 13830 | -2/Garrison | Phase Generator disabled 13857 | -2/Garrison | Entered Access 13857 | -1/Access | Evolved 2 slots: Utility x2 13875 | -1/Access | Lost 7 parts (1n4u2w) 14186 | -1/Access | Identified exit to Garrison 14186 | -1/Access | Entered Garrison 14200 | -1/Garrison | Lost 8 parts (1p6u1w) 14200 | -1/Garrison | Expanded RIF knowledge: Autoassimilate 14210 | -1/Garrison | Spotted B-99 Colossus 14214 | -1/Garrison | Triggered checkpoint 14214 | -1/Garrison | Triggered checkpoint 14230 | -1/Garrison | Discovered new exit (range 12) 14232 | -1/Garrison | P-80 Master assimilated allied Y-72 Warden 14239 | -1/Garrison | Entered Access 14239 | -1/Access | Accompanied by 1 ally 14286 | -1/Access | Lost 4 parts (4u) 14346 | -1/Access | Core integrity fell below 50% 14373 | -1/Access | Lost 3 parts (1n2u) 14400 | -1/Access | Spotted B-99 Colossus 14448 | -1/Access | Lost 5 parts (1p1n3u) 14499 | -1/Access | System corruption reached 10% 14506 | -1/Access | Spotted B-99 Colossus 14523 | -1/Access | Energy Cycler disabled 14524 | -1/Access | Core integrity fell below 20% 14526 | -1/Access | Destroyed by B-99 Colossus with Multirail Last Messages --------------- 14511_ Slug penetrates Wall. 14511_ Penetrated by Slug. 14511_ Slug penetrates Wall. 14514_ Penetrated by Slug. 14514_ Slug penetrates Wall. 14514_ Penetrated by Slug. 14514_ Slug penetrates Wall. 14516_ Biometal Heavy Treads destroyed. 14517_ Relay Coupler [Sentry] destroyed. 14519_ Penetrated by Slug. 14519_ Relay Coupler [Behemoth] destroyed. 14519_ Slug penetrates Wall. 14523_ ALERT: Power surge detected, dispatching additional patrols. 14523_ Energy Cycler explodes. 14523_ Knocked back. 14523_ Penetrated by Slug. 14523_ Slug penetrates Garrison Access. 14523_ C-30 ARC bursts open, deploying its payload. 14523_ P-80 Master unfolds itself. 14526_ Penetrated by Slug. Map ----- +----------------------------------------------------+ | ???????????????????????????????##?????#??????????? | | ???????????????????????????????# ? ??????????? | | ???????????????????????????????# ? ??????????? | | ???????????????????????????????# ?????????? | | ???????????????????????????????# ????????? | | ??????????????????????###??????" ????????? | | ??????????????????????#T#######" ????????? | | ??????????????????????" " ???????? | | ??????????????????????" " ??????? | | ??????????????????????### " "" ???????? | | ????????????????????????# ?????????? | | ????????????????????????# % " ????????? | | ????????????????????????# ; ??????? | | ????????????????????????# ;;"""""####??????? | | ???????????????????????## #####?????? | | ???????????????????????#" p ^ """ #?????? | | ???????????????????????## p """"#?????? | | ??????????????????????##; ""G"" "F""#?????? | | ??????????????????????# BB "%" ""#?????? | | ??????????????????????# BB " " """#?????? | | ??????????????########### % p "" #?????? | | ??????????????# ??# p ] #####?????? | | ??????????????# ## #?????##### | | ??????????????# ! # ####### | | ??????????????# + | | ??????????????# # @ | | ??????????????# #% ####### | | ???????????Y??# ?## #########+###?????## # | | ??????????????# ??# #??????????????????# # | | ??????????????# ???# #??????????????????# # | | ??????????????#######???# #??????????????????# # | | ????????????????????????# #??????????????????# # | | ????????????????????????# #??????????????????# | | ????????????????????????# #??????????????????# | | ????????????????????????? #??????????????????# # | | ????????????????????????? #??????????????????# # | | ????????????????????????? #??????????????????# # | | ????????????????????????? #??????????????????# # | | ????????????????????????? ???????????????????# # | | ????????????????????????? ???????????????????# # | | ????????????????????????? ???????????????????# # | | ???????????????????????????????????############ # | | ???????????????????????????????? # | | ???????????????????????????????? # | | ???????????????????????????????????############# # | | ???????????????????????????????????????????????# # | | ???????????????????????????????????????????????# # | | ???????????????????????????????????????????????# # | | ???????????????????????????????????????????????# # | | ???????????????????????????????????????????????# # | +----------------------------------------------------+ Best States ------------- Heat Dissipation 52 Energy Generation 35 Energy Capacity 350 Matter Stores 300 Matter Capacity 300 Sight Range 16 Terrain Scan Density 10 Additional Mass Support 12 Armor Coverage 450 Evasion (%) 64 Recoil Reduction 3 Offensive Hacking 32 Defensive Hacking 20 Relay Coupler Types 10 Relay Coupler Value 340 Item Schematics ----------------- None Robot Schematics ------------------ None Fabricated ------------ Nothing Alien Tech Used ----------------- None Achievements -------------- None Challenges ------------ None Game ------ Seed TachyonShrapnelFlakker Manual? 0 Play Time 02:55:53 Cumulative 259.5 hours Start 2022.07.26 @ 12:32:44 End 2022.07.27 @ 19:11:38 Sessions 5 Manual Loads 0 Difficulty Rogue Special Mode None Game No. 305 Rogue 305 Adventurer 0 Explorer 0 Win Type - Total 11 Types 8/0/2/1/0/0/0/0/0 Lore% 70 Gallery% 86 Achievement% 74 Wizard Run 0 Options --------- ASCII 0 Keyboard 0 Movement Numpad Keybinds 0 Fullscreen 1 Font 18/Terminus Map View 76x50 Tactical HUD 1 Map Filters NONE Filters NONE Steam 1 RUN: 07e0acce-131e-4ac1-8ae1-8dc38cf7ee6a